fUST/lending_fUST_20250801
["ID","MTS","AMOUNT","RATE_DAILY","PERIOD"]
[376481612,1753992656347,-774.99,0.00020273,2]
[376481613,1753992656356,-923.43,0.00020273,2]
[376481614,1753992656366,-460.0,0.00020273,2]
[376481615,1753992656375,-868.05,0.00020273,2]
[376481616,1753992656385,-751.43,0.00020273,2]
[376481617,1753992656394,-1469.6,0.00020273,2]
[376481618,1753992656403,-460.0,0.00020273,2]
[376481619,1753992656414,-460.0,0.00020273,2]
[376481620,1753992656424,-460.0,0.00020273,2]
[376481621,1753992656436,-736.37,0.00020273,2]
[376481622,1753992656445,-245.36988716,0.00020273,2]
[376481623,1753992656454,-1731.99,0.00020273,2]
[376481624,1753992656463,-460.0,0.00020273,2]
[376481625,1753992656472,-460.0,0.00020273,2]
[376481626,1753992656482,-833.54,0.00020273,2]
[376481627,1753992656492,-865.22,0.00020273,2]
[376481628,1753992656501,-2612.28,0.00020273,2]
[376481629,1753992656510,-2405.18,0.00020273,2]
[376481630,1753992656520,-1459.37,0.00020273,2]
[376481631,1753992656529,-1539.54,0.00020273,2]
[376481632,1753992656538,-460.0,0.00020273,2]
[376481633,1753992656548,-3444.98,0.00020273,2]
[376481634,1753992656557,-2412.48,0.00020273,2]
[376481635,1753992656566,-460.0,0.00020273,2]
[376481636,1753992656576,-3313.16,0.00020273,2]
[376481637,1753992656585,-460.0,0.00020273,2]
[376481638,1753992656595,-460.0,0.00020273,2]
[376481639,1753992656605,-460.0,0.00020273,2]
[376481640,1753992656614,-460.0,0.00020273,2]
[376481641,1753992656624,-253.49282,0.00020273,2]
[376481642,1753992656633,-460.0,0.00020273,2]
[376481643,1753992656643,-682.17,0.00020273,2]
[376481644,1753992656652,-539.31,0.00020273,2]
[376481645,1753992656663,-641.75,0.00020273,2]
[376481646,1753992656672,-151.0,0.00020273,2]
[376481647,1753992656682,-743.96,0.00020273,2]
[376481648,1753992656691,-460.0,0.00020273,2]
[376481649,1753992656700,-460.0,0.00020273,2]
[376481650,1753992656710,-748.55,0.00020273,2]
[376481651,1753992656719,-2548.5,0.00020273,2]
[376481652,1753992656729,-954.79,0.00020273,2]
[376481653,1753992656740,-7913.01,0.00020273,2]
[376481654,1753992656749,-7531.09,0.00020273,2]
[376481655,1753992656758,-1147.33,0.00020273,2]
[376481656,1753992656768,-2692.51,0.00020273,2]
[376481657,1753992656777,-818.96,0.00020273,2]
[376481658,1753992656786,-562.28,0.00020273,2]
[376481659,1753992656795,-460.0,0.00020273,2]
[376481660,1753992656805,-3255.93,0.00020273,2]
[376481661,1753992656814,-460.0,0.00020273,2]
[376481662,1753992656823,-460.0,0.00020273,2]
[376481663,1753992656837,-797.02,0.00020273,2]
[376481664,1753992656847,-808.48,0.00020273,2]
[376481665,1753992656858,-844.99,0.00020273,2]
[376481666,1753992656869,-793.26,0.00020273,2]
[376481667,1753992656879,-460.0,0.00020273,2]
[376481668,1753992656890,-1355.93,0.00020273,2]
[376481669,1753992656899,-480.28,0.00020273,2]
[376481670,1753992656909,-1670.54,0.00020273,2]
[376481671,1753992656920,-460.0,0.00020273,2]
[376481672,1753992656930,-360.76616222,0.00020273,2]
[376481673,1753992656939,-460.0,0.00020273,2]
[376481674,1753992656949,-471.86,0.00020273,2]
[376481675,1753992656961,-592.5,0.00020273,2]
[376481676,1753992656971,-460.0,0.00020273,2]
[376481677,1753992656980,-460.0,0.00020273,2]
[376481678,1753992656990,-460.0,0.00020273,2]
[376481679,1753992656999,-1048.65,0.00020273,2]
[376481680,1753992657009,-921.2,0.00020273,2]
[376481681,1753992657018,-460.0,0.00020273,2]
[376481682,1753992657029,-3558.48,0.00020273,2]
[376481683,1753992657039,-151.0,0.00020273,2]
[376481684,1753992657049,-553.37,0.00020273,2]
[376481685,1753992657058,-481.29,0.00020273,2]
[376481686,1753992657066,-484.2,0.00020273,2]
[376481687,1753992657187,-245.0,0.00020274,2]
[376481688,1753992657197,-646.0,0.00020274,2]
[376481689,1753992657206,-2711.91063801,0.00020279,3]
[376481690,1753992657215,-419.77423022,0.0002028,3]
[376481691,1753992657224,-244.637201,0.00020283,2]
[376481692,1753992657234,-151.0,0.00020283,2]
[376481693,1753992657243,-183.46590921,0.00020301,2]
[376481694,1753992657252,-12642.0599901,0.00020314,3]
[376481695,1753992657261,-312.16666667,0.00020314,3]
[376481696,1753992657270,-151.0,0.00020314,2]
[376481697,1753992657279,-151.0,0.00020314,2]
[376481698,1753992657289,-151.0,0.00020314,2]
[376481699,1753992657298,-151.0,0.00020314,2]
[376481700,1753992657307,-249.62451,0.00020314,2]
[376481701,1753992657316,-151.0,0.00020314,2]
[376481702,1753992657325,-204.362749,0.00020314,2]
[376481703,1753992657335,-204.362749,0.00020314,2]
[376481704,1753992657344,-151.0,0.00020314,2]
[376481705,1753992657353,-151.0,0.00020314,2]
[376481706,1753992657363,-1000.0,0.00020321,2]
[376481707,1753992657373,-1000.0,0.00020321,2]
[376481708,1753992657385,-1000.0,0.00020321,2]
[376481709,1753992657394,-1000.0,0.00020321,2]
[376481710,1753992657403,-250.0,0.00020321,2]
[376481711,1753992657414,-1000.0,0.00020321,2]
[376481712,1753992657423,-1000.0,0.00020321,2]
[376481713,1753992657432,-500.0,0.00020321,2]
[376481714,1753992657442,-160.0,0.00020333,3]
[376481715,1753992657451,-151.0,0.00020333,2]
[376481716,1753992657460,-395.10129558,0.00020333,2]
[376481717,1753992657530,-366.0670543,0.00019178,2]
[376481718,1753992657542,-93.9329457,0.00019178,2]
[376481719,1753992657552,-460.0,0.00019452,2]
[376481720,1753992657561,-338.5644168,0.00019726,2]
[376481721,1753992657573,-121.4355832,0.00019726,2]
[376481722,1753992657582,-238.06541684,0.00019726,2]
[376481723,1753992657594,-41.39797976,0.00019726,2]
[376481724,1753992657604,-460.0,0.0002,2]
[376481725,1753992657614,-866.19128542,0.00020333,2]
[376481726,1753992657624,-183.46590921,0.00020384,2]
[376481727,1753992657633,-816.0,0.00020396,2]
[376481728,1753992657643,-151.0,0.000204,4]
[376481729,1753992657652,-151.0,0.00020417,2]
[376481730,1753992657662,-151.0,0.00020417,2]
[376481731,1753992657671,-112.88578596,0.00020417,2]
[376481732,1753992657715,-38.11421404,0.00020417,2]
[376481733,1753992657724,-151.0,0.00020417,2]
[376481734,1753992657734,-9711.88079616,0.00020417,3]
[376481735,1753992657743,-160.0,0.00020445,2]
[376481736,1753992657753,-183.46590921,0.00020493,2]
[376481737,1753992657762,-400.0,0.00020521,2]
[376481738,1753992657772,-151.0,0.00020547,2]
[376481739,1753992657781,-151.0,0.00020547,2]
[376481740,1753992657790,-151.0,0.00020547,2]
[376481741,1753992657800,-151.0,0.00020547,2]
[376481742,1753992657809,-151.0,0.00020547,2]
[376481743,1753992657819,-151.0,0.00020547,2]
[376481744,1753992657828,-151.0,0.00020547,2]
[376481745,1753992657837,-151.0,0.00020547,2]
[376481746,1753992657848,-151.0,0.00020547,2]
[376481747,1753992657857,-151.0,0.00020547,2]
[376481748,1753992657867,-151.0,0.00020547,2]
[376481749,1753992657877,-151.0,0.00020547,2]
[376481750,1753992657889,-151.0,0.00020547,2]
[376481751,1753992657898,-264.811179,0.00020547,2]
[376481752,1753992657907,-151.0,0.00020547,2]
[376481753,1753992657918,-151.0,0.00020547,2]
[376481754,1753992657928,-151.0,0.00020547,2]
[376481755,1753992657937,-151.0,0.00020547,2]
[376481756,1753992657946,-151.0,0.00020547,2]
[376481757,1753992657956,-338.405847,0.00020547,2]
[376481758,1753992657966,-338.405847,0.00020547,2]
[376481759,1753992657975,-244.637201,0.00020547,2]
[376481760,1753992657985,-187.165585,0.00020547,2]
[376481761,1753992657994,-388.695195,0.00020547,2]
[376481762,1753992658003,-388.695195,0.00020547,2]
[376481763,1753992658012,-151.0,0.00020547,2]
[376481764,1753992658023,-151.0,0.00020547,2]
[376481765,1753992658033,-151.0,0.00020547,2]
[376481766,1753992658043,-151.0,0.00020547,2]
[376481767,1753992658052,-151.0,0.00020547,2]
[376481768,1753992658061,-151.0,0.00020547,2]
[376481769,1753992658071,-151.0,0.00020547,2]
[376481770,1753992658080,-1261.292581,0.00020547,2]
[376481771,1753992658089,-151.0,0.00020547,2]
[376481772,1753992658099,-151.0,0.00020547,2]
[376481773,1753992658108,-151.0,0.00020547,2]
[376481774,1753992658118,-518.28,0.00020547,2]
[376481775,1753992658128,-220.116593,0.00020547,2]
[376481776,1753992658138,-508.1,0.00020547,2]
[376481777,1753992658148,-151.0,0.00020547,2]
[376481778,1753992658157,-151.0,0.00020547,2]
[376481779,1753992658168,-460.0,0.00020547,2]
[376481780,1753992658177,-151.0,0.00020547,2]
[376481781,1753992658186,-207.968851,0.00020547,2]
[376481782,1753992658196,-207.968851,0.00020547,2]
[376481783,1753992658205,-460.0,0.00020547,2]
[376481784,1753992658214,-460.0,0.00020547,2]
[376481785,1753992658223,-151.0,0.00020547,2]
[376481786,1753992658233,-1082.89,0.00020547,2]
[376481787,1753992658243,-834.81,0.00020547,2]
[376481788,1753992658253,-543.74,0.00020547,2]
[376481789,1753992658262,-460.0,0.00020547,2]
[376481790,1753992658272,-460.0,0.00020547,2]
[376481791,1753992658282,-640.74,0.00020547,2]
[376481792,1753992658291,-460.0,0.00020547,2]
[376481793,1753992658300,-478.96,0.00020547,2]
[376481794,1753992658309,-151.0,0.00020547,2]
[376481795,1753992658319,-696.25,0.00020547,2]
[376481796,1753992658329,-513.77,0.00020547,2]
[376481797,1753992658338,-1007.37,0.00020547,2]
[376481798,1753992658347,-460.0,0.00020547,2]
[376481799,1753992658356,-543.8,0.00020547,2]
[376481800,1753992658366,-151.0,0.00020547,2]
[376481801,1753992658375,-487.29,0.00020547,2]
[376481802,1753992658384,-460.0,0.00020547,2]
[376481803,1753992658393,-193.588285,0.00020547,2]
[376481804,1753992658402,-460.0,0.00020547,2]
[376481805,1753992658411,-151.0,0.00020547,2]
[376481806,1753992658420,-460.0,0.00020547,2]
[376481807,1753992658429,-179.844671,0.00020547,2]
[376481808,1753992658439,-460.0,0.00020547,2]
[376481809,1753992658448,-179.844671,0.00020547,2]
[376481810,1753992658457,-663.86,0.00020547,2]
[376481811,1753992658466,-460.0,0.00020547,2]
[376481812,1753992658475,-151.0,0.00020547,2]
[376481813,1753992658484,-151.0,0.00020547,2]
[376481814,1753992658494,-460.0,0.00020547,2]
[376481815,1753992658503,-460.0,0.00020547,2]
[376481816,1753992658513,-484.16,0.00020547,2]
[376481817,1753992658523,-691.12,0.00020547,2]
[376481818,1753992658532,-460.0,0.00020547,2]
[376481819,1753992658544,-518.8,0.00020547,2]
[376481820,1753992658553,-460.0,0.00020547,2]
[376481821,1753992658564,-460.0,0.00020547,2]
[376481822,1753992658574,-511.93,0.00020547,2]
[376481823,1753992658583,-565.81,0.00020547,2]
[376481824,1753992658592,-460.0,0.00020547,2]
[376481825,1753992658601,-460.0,0.00020547,2]
[376481826,1753992658611,-460.0,0.00020547,2]
[376481827,1753992658621,-460.0,0.00020547,2]
[376481828,1753992658630,-460.0,0.00020547,2]
[376481829,1753992658639,-633.78,0.00020547,2]
[376481830,1753992658649,-460.0,0.00020547,2]
[376481831,1753992658658,-460.0,0.00020547,2]
[376481832,1753992658668,-3242.99,0.00020547,2]
[376481833,1753992658677,-203.30028,0.00020547,2]
[376481834,1753992658686,-472.0,0.00020547,2]
[376481835,1753992658695,-622.23,0.00020547,2]
[376481836,1753992658704,-906.16,0.00020547,2]
[376481837,1753992658714,-702.88,0.00020547,2]
[376481838,1753992658723,-2467.09,0.00020547,2]
[376481839,1753992658732,-750.5,0.00020547,2]
[376481840,1753992658741,-460.0,0.00020547,2]
[376481841,1753992658751,-5504.7,0.00020547,2]
[376481842,1753992658760,-734.59,0.00020547,2]
[376481843,1753992658769,-460.0,0.00020547,2]
[376481844,1753992658779,-803.88,0.00020547,2]
[376481845,1753992658788,-774.99,0.00020547,2]
[376481846,1753992658797,-923.43,0.00020547,2]
[376481847,1753992658806,-460.0,0.00020547,2]
[376481848,1753992658815,-868.05,0.00020547,2]
[376481849,1753992658825,-1469.6,0.00020547,2]
[376481850,1753992658834,-751.43,0.00020547,2]
[376481851,1753992658843,-460.0,0.00020547,2]
[376481852,1753992658852,-460.0,0.00020547,2]
[376481853,1753992658860,-460.0,0.00020547,2]
[376481854,1753992658871,-736.37,0.00020547,2]
[376481855,1753992658880,-1731.99,0.00020547,2]
[376481856,1753992658891,-460.0,0.00020547,2]
[376481857,1753992658900,-833.54,0.00020547,2]
[376481858,1753992658910,-865.22,0.00020547,2]
[376481859,1753992658921,-2612.28,0.00020547,2]
[376481860,1753992658930,-2405.18,0.00020547,2]
[376481861,1753992658939,-460.0,0.00020547,2]
[376481862,1753992658948,-1459.37,0.00020547,2]
[376481863,1753992658957,-1539.54,0.00020547,2]
[376481864,1753992658967,-460.0,0.00020547,2]
[376481865,1753992658976,-3444.98,0.00020547,2]
[376481866,1753992658985,-2412.48,0.00020547,2]
[376481867,1753992658995,-460.0,0.00020547,2]
[376481868,1753992659004,-3313.16,0.00020547,2]
[376481869,1753992659014,-460.0,0.00020547,2]
[376481870,1753992659023,-460.0,0.00020547,2]
[376481871,1753992659034,-460.0,0.00020547,2]
[376481872,1753992659043,-460.0,0.00020547,2]
[376481873,1753992659052,-460.0,0.00020547,2]
[376481874,1753992659061,-682.17,0.00020547,2]
[376481875,1753992659070,-539.31,0.00020547,2]
[376481876,1753992659080,-641.75,0.00020547,2]
[376481877,1753992659089,-151.0,0.00020547,2]
[376481878,1753992659098,-743.96,0.00020547,2]
[376481879,1753992659108,-460.0,0.00020547,2]
[376481880,1753992659117,-460.0,0.00020547,2]
[376481881,1753992659126,-748.55,0.00020547,2]
[376481882,1753992659135,-2548.5,0.00020547,2]
[376481883,1753992659144,-954.79,0.00020547,2]
[376481884,1753992659154,-7913.01,0.00020547,2]
[376481885,1753992659164,-7531.09,0.00020547,2]
[376481886,1753992659173,-1147.33,0.00020547,2]
[376481887,1753992659182,-2692.51,0.00020547,2]
[376481888,1753992659192,-818.96,0.00020547,2]
[376481889,1753992659200,-562.28,0.00020547,2]
[376481890,1753992659209,-460.0,0.00020547,2]
[376481891,1753992659219,-3255.93,0.00020547,2]
[376481892,1753992659228,-460.0,0.00020547,2]
[376481893,1753992659237,-460.0,0.00020547,2]
[376481894,1753992659247,-797.02,0.00020547,2]
[376481895,1753992659362,-808.48,0.00020547,2]
[376481896,1753992659373,-844.99,0.00020547,2]
[376481897,1753992659383,-793.26,0.00020547,2]
[376481898,1753992659393,-460.0,0.00020547,2]
[376481899,1753992659402,-1355.93,0.00020547,2]
[376481900,1753992659411,-480.28,0.00020547,2]
[376481901,1753992659421,-1670.54,0.00020547,2]
[376481902,1753992659431,-460.0,0.00020547,2]
[376481903,1753992659440,-460.0,0.00020547,2]
[376481904,1753992659449,-471.86,0.00020547,2]
[376481905,1753992659458,-592.5,0.00020547,2]
[376481906,1753992659467,-460.0,0.00020547,2]
[376481907,1753992659477,-460.0,0.00020547,2]
[376481908,1753992659486,-1048.65,0.00020547,2]
[376481909,1753992659496,-921.2,0.00020547,2]
[376481910,1753992659506,-460.0,0.00020547,2]
[376481911,1753992659516,-3558.48,0.00020547,2]
[376481912,1753992659526,-553.37,0.00020547,2]
[376481913,1753992659535,-481.29,0.00020547,2]
[376481914,1753992659544,-484.2,0.00020547,2]
[376481915,1753992659555,-500.0,0.00020548,2]
[376481916,1753992659564,-646.0,0.00020548,2]
[376481917,1753992659573,-816.0,0.0002055,2]
[376481918,1753992659583,-183.46590921,0.00020575,2]
[376481919,1753992659592,-9711.88079616,0.0002059,3]
[376481920,1753992659601,-151.0,0.0002059,2]
[376481921,1753992659610,-204.362749,0.0002059,2]
[376481922,1753992659620,-204.362749,0.0002059,2]
[376481923,1753992659629,-151.0,0.0002059,2]
[376481924,1753992659638,-151.0,0.0002059,2]
[376481925,1753992659648,-1096.7,0.00020612,3]
[376481926,1753992659657,-183.46590921,0.00020685,2]
[376481927,1753992659668,-1200.0,0.00020725,2]
[376481928,1753992659677,-151.0,0.00020728,2]
[376481929,1753992659686,-151.0,0.00020728,2]
[376481930,1753992659696,-151.0,0.00020728,2]
[376481931,1753992659705,-151.0,0.00020728,2]
[376481932,1753992659714,-151.0,0.00020728,2]
[376481933,1753992659723,-151.0,0.00020728,2]
[376481934,1753992659733,-151.0,0.00020728,2]
[376481935,1753992659742,-151.0,0.00020728,2]
[376481936,1753992659751,-325.0,0.00020762,2]
[376481937,1753992659760,-325.0,0.00020762,2]
[376481938,1753992659769,-192.66375418,0.00020762,2]
[376481939,1753992659778,-151.0,0.00020762,2]
[376481940,1753992659787,-151.0,0.00020762,2]
[376481941,1753992659797,-151.0,0.00020762,2]
[376481942,1753992659807,-9711.88079616,0.00020762,3]
[376481943,1753992659816,-151.0,0.00020763,2]
[376481944,1753992659825,-151.0,0.00020763,2]
[376481945,1753992659834,-151.0,0.00020763,2]
[376481946,1753992659843,-420.0,0.00020792,2]
[376481947,1753992659854,-150.803326,0.000208,3]
[376481948,1753992659866,-151.0,0.00020821,2]
[376481949,1753992659876,-151.0,0.00020821,2]
[376481950,1753992659888,-151.681157,0.00020821,2]
[376481951,1753992659898,-151.0,0.00020821,2]
[376481952,1753992659908,-151.0,0.00020821,2]
[376481953,1753992659919,-151.0,0.00020821,2]
[376481954,1753992659928,-151.0,0.00020821,2]
[376481955,1753992659939,-151.0,0.00020821,2]
[376481956,1753992659950,-151.0,0.00020821,2]
[376481957,1753992659960,-184.379748,0.00020821,2]
[376481958,1753992659971,-151.0,0.00020821,2]
[376481959,1753992659980,-151.0,0.00020821,2]
[376481960,1753992659990,-151.0,0.00020821,2]
[376481961,1753992659999,-151.0,0.00020821,2]
[376481962,1753992660008,-151.0,0.00020821,2]
[376481963,1753992660019,-151.0,0.00020821,2]
[376481964,1753992660028,-151.0,0.00020821,2]
[376481965,1753992660038,-338.405847,0.00020821,2]
[376481966,1753992660047,-338.405847,0.00020821,2]
[376481967,1753992660057,-388.695195,0.00020821,2]
[376481968,1753992660066,-388.695195,0.00020821,2]
[376481969,1753992660075,-151.0,0.00020821,2]
[376481970,1753992660086,-252.265862,0.00020821,2]
[376481971,1753992660097,-151.0,0.00020821,2]
[376481972,1753992660109,-151.242856,0.00020821,2]
[376481973,1753992660119,-1261.292581,0.00020821,2]
[376481974,1753992660131,-151.0,0.00020821,2]
[376481975,1753992660141,-518.28,0.00020821,2]
[376481976,1753992660150,-508.1,0.00020821,2]
[376481977,1753992660160,-151.0,0.00020821,2]
[376481978,1753992660170,-151.0,0.00020821,2]
[376481979,1753992660179,-151.0,0.00020821,2]
[376481980,1753992660189,-557.58524499,0.00020821,2]
[376481981,1753992660198,-151.0,0.00020821,2]
[376481982,1753992660208,-151.0,0.00020821,2]
[376481983,1753992660217,-441.18579161,0.00020821,2]
[376481984,1753992660226,-460.0,0.00020821,2]
[376481985,1753992660235,-283.091723,0.00020821,2]
[376481986,1753992660245,-1082.89,0.00020821,2]
[376481987,1753992660254,-834.81,0.00020821,2]
[376481988,1753992660264,-543.74,0.00020821,2]
[376481989,1753992660273,-460.0,0.00020821,2]
[376481990,1753992660283,-460.0,0.00020821,2]
[376481991,1753992660293,-640.74,0.00020821,2]
[376481992,1753992660302,-460.0,0.00020821,2]
[376481993,1753992660311,-478.96,0.00020821,2]
[376481994,1753992660321,-151.0,0.00020821,2]
[376481995,1753992660330,-696.25,0.00020821,2]
[376481996,1753992660339,-513.77,0.00020821,2]
[376481997,1753992660349,-1007.37,0.00020821,2]
[376481998,1753992660358,-460.0,0.00020821,2]
[376481999,1753992660367,-543.8,0.00020821,2]
[376482000,1753992660377,-151.0,0.00020821,2]
[376482001,1753992660386,-487.29,0.00020821,2]
[376482002,1753992660395,-460.0,0.00020821,2]
[376482003,1753992660405,-460.0,0.00020821,2]
[376482004,1753992660415,-460.0,0.00020821,2]
[376482005,1753992660424,-179.844671,0.00020821,2]
[376482006,1753992660433,-460.0,0.00020821,2]
[376482007,1753992660443,-179.844671,0.00020821,2]
[376482008,1753992660454,-663.86,0.00020821,2]
[376482009,1753992660463,-414.74806656,0.00020821,2]
[376482010,1753992660473,-151.0,0.00020821,2]
[376482011,1753992660482,-151.0,0.00020821,2]
[376482012,1753992660491,-460.0,0.00020821,2]
[376482013,1753992660500,-460.0,0.00020821,2]
[376482014,1753992660510,-484.16,0.00020821,2]
[376482015,1753992660519,-691.12,0.00020821,2]
[376482016,1753992660528,-460.0,0.00020821,2]
[376482017,1753992660538,-518.8,0.00020821,2]
[376482018,1753992660547,-460.0,0.00020821,2]
[376482019,1753992660556,-460.0,0.00020821,2]
[376482020,1753992660566,-511.93,0.00020821,2]
[376482021,1753992660576,-565.81,0.00020821,2]
[376482022,1753992660586,-460.0,0.00020821,2]
[376482023,1753992660595,-460.0,0.00020821,2]
[376482024,1753992660604,-460.0,0.00020821,2]
[376482025,1753992660613,-460.0,0.00020821,2]
[376482026,1753992660622,-633.78,0.00020821,2]
[376482027,1753992660632,-460.0,0.00020821,2]
[376482028,1753992660641,-460.0,0.00020821,2]
[376482029,1753992660650,-460.0,0.00020821,2]
[376482030,1753992660659,-2894.1658491,0.00020821,2]
[376482031,1753992660676,-348.8241509,0.00020821,2]
[376482033,1753992660685,-472.0,0.00020821,2]
[376482034,1753992660695,-622.23,0.00020821,2]
[376482035,1753992660704,-906.16,0.00020821,2]
[376482036,1753992660713,-702.88,0.00020821,2]
[376482037,1753992660722,-2467.09,0.00020821,2]
[376482038,1753992660731,-750.5,0.00020821,2]
[376482039,1753992660741,-440.39943473,0.00020821,2]
[376482040,1753992660750,-5504.7,0.00020821,2]
[376482041,1753992660759,-734.59,0.00020821,2]
[376482042,1753992660768,-460.0,0.00020821,2]
[376482043,1753992660779,-774.99,0.00020821,2]
[376482044,1753992660788,-803.88,0.00020821,2]
[376482045,1753992660797,-923.43,0.00020821,2]
[376482046,1753992660806,-460.0,0.00020821,2]
[376482047,1753992660816,-868.05,0.00020821,2]
[376482048,1753992660825,-1469.6,0.00020821,2]
[376482049,1753992660834,-751.43,0.00020821,2]
[376482050,1753992660844,-460.0,0.00020821,2]
[376482051,1753992660855,-460.0,0.00020821,2]
[376482052,1753992660864,-460.0,0.00020821,2]
[376482053,1753992660874,-736.37,0.00020821,2]
[376482054,1753992660885,-1731.99,0.00020821,2]
[376482055,1753992660894,-460.0,0.00020821,2]
[376482056,1753992660903,-833.54,0.00020821,2]
[376482057,1753992660912,-865.22,0.00020821,2]
[376482058,1753992660922,-2612.28,0.00020821,2]
[376482059,1753992660931,-2405.18,0.00020821,2]
[376482060,1753992660940,-460.0,0.00020821,2]
[376482061,1753992660951,-1459.37,0.00020821,2]
[376482062,1753992660962,-1539.54,0.00020821,2]
[376482063,1753992660972,-460.0,0.00020821,2]
[376482064,1753992660981,-3444.98,0.00020821,2]
[376482065,1753992660991,-2412.48,0.00020821,2]
[376482066,1753992661000,-460.0,0.00020821,2]
[376482067,1753992661010,-3313.16,0.00020821,2]
[376482068,1753992661019,-460.0,0.00020821,2]
[376482069,1753992661029,-460.0,0.00020821,2]
[376482070,1753992661038,-460.0,0.00020821,2]
[376482071,1753992661047,-460.0,0.00020821,2]
[376482072,1753992661057,-460.0,0.00020821,2]
[376482073,1753992661067,-682.17,0.00020821,2]
[376482074,1753992661076,-539.31,0.00020821,2]
[376482075,1753992661085,-641.75,0.00020821,2]
[376482076,1753992661095,-240.58818,0.00020821,2]
[376482077,1753992661104,-743.96,0.00020821,2]
[376482078,1753992661113,-460.0,0.00020821,2]
[376482079,1753992661123,-460.0,0.00020821,2]
[376482080,1753992661132,-2548.5,0.00020821,2]
[376482081,1753992661143,-748.55,0.00020821,2]
[376482082,1753992661153,-954.79,0.00020821,2]
[376482083,1753992661163,-7913.01,0.00020821,2]
[376482084,1753992661173,-7531.09,0.00020821,2]
[376482085,1753992661182,-1147.33,0.00020821,2]
[376482086,1753992661191,-2692.51,0.00020821,2]
[376482087,1753992661201,-818.96,0.00020821,2]
[376482088,1753992661209,-562.28,0.00020821,2]
[376482089,1753992661218,-460.0,0.00020821,2]
[376482090,1753992661228,-3255.93,0.00020821,2]
[376482091,1753992661237,-460.0,0.00020821,2]
[376482092,1753992661246,-340.26640541,0.00020821,2]
[376482093,1753992661255,-797.02,0.00020821,2]
[376482094,1753992661266,-808.48,0.00020821,2]
[376482095,1753992661275,-844.99,0.00020821,2]
[376482096,1753992661284,-460.0,0.00020821,2]
[376482097,1753992661294,-793.26,0.00020821,2]
[376482098,1753992661305,-1355.93,0.00020821,2]
[376482099,1753992661314,-480.28,0.00020821,2]
[376482100,1753992661419,-1670.54,0.00020821,2]
[376482101,1753992661429,-460.0,0.00020821,2]
[376482102,1753992661438,-460.0,0.00020821,2]
[376482103,1753992661448,-471.86,0.00020821,2]
[376482104,1753992661457,-592.5,0.00020821,2]
[376482105,1753992661466,-460.0,0.00020821,2]
[376482107,1753992661475,-460.0,0.00020821,2]
[376482108,1753992661484,-1048.65,0.00020821,2]
[376482109,1753992661494,-921.2,0.00020821,2]
[376482110,1753992661503,-460.0,0.00020821,2]
[376482111,1753992661513,-3558.48,0.00020821,2]
[376482112,1753992661522,-553.37,0.00020821,2]
[376482113,1753992661532,-481.29,0.00020821,2]